Cogmind - Beta 16 @@@ ROGUE MODE // 2026.01.31 @ 00:08:10 Player: Playing with my Cog Result: Destroyed by C-57 Dissector with Dual-blade Saw Performance ------------- Evolutions (9) 4500 Regions Visited (8) 1600 Robots Destroyed (14) 70 Value Destroyed (628) 628 Prototype IDs (6) 120 Alien Tech Used (0) 0 Bonus (0) 0 TOTAL SCORE: 6918 Bonus ------- None Cogmind --------- Core Integrity 0/1600 Matter 123/300 Energy 99/100 System Corruption 4% Temperature Cool (0) Movement Core (50) Location -1/Access Parts ------- > --- POWER (4) -------- (None) > --- PROPULSION (6) --- (None) > --- UTILITY (11) ----- (None) > --- WEAPON (4) ------- (None) > --- INVENTORY (5) ---- Light Angular Momentum Engine Fusion Compressor Peak State ------------ > --- POWER ------------ Light Antimatter Reactor > --- PROPULSION ------- Q-thruster Impulse Thruster Array > --- UTILITY ---------- Power Amplifier Long-range Sensor Array Cloaking Device Advanced Hacking Suite System Shield > --- WEAPON ----------- Improved Remote Datajack > --- INVENTORY -------- Light Angular Momentum Engine Improved Gyrokinetic Inverter Cooled Field Propulsion Drive [Rating: 65] Favorites ----------- Power Ion Engine Engine Ion Engine Reactor Light Antimatter Reactor Propulsion Aluminum Leg Treads Improved Medium Treads Leg Aluminum Leg Hover Unit Improved Gyrokinetic Inverter Flight Unit Impulse Thruster Array Utility Hacking Suite Device Cloaking Device Storage Small Storage Unit Processor System Guard Hackware Hacking Suite Protection Improved Medium Armor Plating Weapon Makeshift Hammer Energy Gun Medium Laser Ballistic Gun Gauss Rifle Ballistic Cannon Enhanced Hardcell Cannon Special Weapon Improved Remote Datajack Impact Weapon Makeshift Hammer Build | -11 -10 -10 -7 -5 -4 -3 -2 -1 ------- Run | Yrd Mat Sub Scr Fac Fac Res Res Acc Slots Evolved 18 | . . . . 10 2 2 2 2 Power 3 | . . . . 1 1 . 1 . Propulsion 4 | . . . . 4 . . . . Utility 9 | . . . . 5 1 2 . 1 Weapon 2 | . . . . . . . 1 1 Parts Attached 51 | 6 1 . 4 22 7 . 7 4 Power 5 | 1 . . 1 1 1 . 1 . Engine 3 | 1 . . 1 . . . 1 . Core . | . . . . . . . . . Reactor 2 | . . . . 1 1 . . . Propulsion 21 | 2 . . 1 13 1 . 3 1 Treads 9 | . . . . 9 . . . . Leg 7 | 2 . . 1 4 . . . . Wheel . | . . . . . . . . . Hover 1 | . . . . . . . . 1 Flight 4 | . . . . . 1 . 3 . Utility 14 | 1 1 . . 5 4 . 1 2 Device 5 | . . . . . 3 . 1 1 Storage 1 | 1 . . . . . . . . Processor 2 | . . . . . 1 . . 1 Hackware 5 | . 1 . . 4 . . . . Protection 1 | . . . . 1 . . . . Artifact . | . . . . . . . . . Weapon 11 | 2 . . 2 3 1 . 2 1 Energy Gun 5 | 2 . . . 2 1 . . . Energy Cannon . | . . . . . . . . . Ballistic Gun 2 | . . . 1 1 . . . . Ballistic Cannon 2 | . . . . . . . 1 1 Launcher . | . . . . . . . . . Special Weapon 1 | . . . . . . . 1 . Impact Weapon 1 | . . . 1 . . . . . Slashing Weapon . | . . . . . . . . . Piercing Weapon . | . . . . . . . . . Special Melee Weapon . | . . . . . . . . . Unidentified Prototypes 6 | . . . . . 3 . 1 2 Parts Lost 34 | . . 1 . 21 . 2 9 1 Power 4 | . . . . 3 . . 1 . Propulsion 12 | . . . . 9 . 1 2 . Utility 11 | . . . . 5 . 1 4 1 Weapon 7 | . . 1 . 4 . . 2 . Highest Loss Streak 11 | . . 1 . 11 . 1 4 1 To Critical Strikes . | . . . . . . . . . Average Backups 4 | 1 4 7 7 3 4 5 3 2 Power . | . 1 1 1 . 1 2 1 1 Propulsion 1 | . 2 4 2 . 1 2 2 . Utility 1 | . . . 2 1 . . . . Weapon . | . 1 1 . . . . . . Tool/Special . | . . . . . . . . . Unused Backups 9 | . . . 6 . 2 . . 1 Power 2 | . . . 1 . . . . 1 Propulsion 2 | . . . 2 . . . . . Utility 1 | . . . . . 1 . . . Weapon 2 | . . . 2 . . . . . Tool/Special 2 | . . . 1 . 1 . . . Average Slot Usage (%) 69 | . 91 92 94 71 50 50 32 6 Engine 7 | . 14 14 14 6 . . . . Treads 6 | . . . . 12 30 27 1 . Leg 15 | . 28 28 28 12 . . . . Flight 1 | . . . . . . . 6 1 Device 1 | . . . . . 1 9 8 . Storage 7 | . 14 14 14 4 . . . . Hackware 12 | . 5 14 14 19 10 9 7 3 Energy Gun 4 | . 28 21 . 1 . . . . Ballistic Gun 4 | . . . 11 4 . . . . Impact Weapon 4 | . . . 11 3 4 . . . Peak Build Rating 65 | 6 9 9 24 62 59 58 65 21 Average Rating 31 | 5 7 8 17 42 49 56 55 9 On Entrance 23 | . 6 9 8 24 43 58 48 14 Avg Prop Armor Cover (%) 30 | . . . . 21 43 43 28 5 Naked Turns 27 | . . . . . . . . 27 Heaviest Build 42 | 14 14 14 22 42 15 3 20 . Greatest Support 76 | 20 20 20 26 76 3 3 34 7 Greatest Overweight (x) 4 | 1 . . 1 1 4 . 4 . Average Overweight (x) . | . . . . . . . . . Largest Inventory Capacity 8 | 8 8 8 8 8 5 5 5 5 Average Capacity 6 | 7 8 8 8 7 5 5 5 5 Most Carried 8 | 4 7 7 8 7 5 5 5 4 Average Carried 4 | 1 4 7 7 3 4 5 3 2 Final Capacity 8 | 8 8 8 8 5 5 5 5 5 Final Carried 8 | 4 7 7 8 4 5 5 3 2 Class Distribution -------------------- 51% | Hacker-Mutant 47% | Mutant Dominant Class ---------------- Mutant | -10/Materials Mutant | -10/Subcaves Mutant | -7/Scraptown Hacker-Mutant | -5/Factory Hacker-Mutant | -4/Factory Hacker-Mutant | -3/Research Hacker-Mutant | -2/Research Mutant | -1/Access Resources | -11 -10 -10 -7 -5 -4 -3 -2 -1 ----------- Run | Yrd Mat Sub Scr Fac Fac Res Res Acc Matter Collected 710 | 248 22 . . 380 60 . . . Remotely . | . . . . . . . . . Salvage Created 588 | . 30 . . 558 . . . . Parts 22 | . 4 . . 18 . . . . Haulers Intercepted 1 | . . . . 1 . . . . Recyclers Shooed . | . . . . . . . . . Parts Field Recycled . | . . . . . . . . . Retrieved Matter . | . . . . . . . . . Parts Self-Destructed 8 | . . 8 . . . . . . Prevented . | . . . . . . . . . Parts Restored . | . . . . . . . . . Kills | -11 -10 -10 -7 -5 -4 -3 -2 -1 ------- Run | Yrd Mat Sub Scr Fac Fac Res Res Acc Combat Hostiles Destroyed 10 | . . . . 10 . . . . Melee 4 | . . . . 4 . . . . Guns 1 | . . . . 1 . . . . AOE 4 | . . . . 4 . . . . Classes Destroyed 9 | . 2 . . 7 . . . . Worker 1 | . . . . 1 . . . . Hauler 1 | . . . . 1 . . . . Operator 1 | . 1 . . . . . . . Watcher 1 | . 1 . . . . . . . Swarmer 1 | . . . . 1 . . . . Grunt 5 | . . . . 5 . . . . Brawler 1 | . . . . 1 . . . . Hunter 1 | . . . . 1 . . . . Programmer 2 | . . . . 2 . . . . Best Kill Streak 6 | . 1 . . 6 . . . . Combat Bots Only 6 | . . . . 6 . . . . Max Kills in Single Turn 4 | . 1 . . 4 . . . . Gunslinging . | . . . . . . . . . Exploded 4 | . . . . 4 . . . . Melee 1 | . . . . 1 . . . . Uniques/NPCs Destroyed . | . . . . . . . . . Combat | -11 -10 -10 -7 -5 -4 -3 -2 -1 -------- Run | Yrd Mat Sub Scr Fac Fac Res Res Acc Hostile Shots Fired 483 | . 18 6 . 196 4 56 117 86 Missed 180 | . 7 3 . 57 3 27 50 33 Hits 303 | . 11 3 . 139 1 29 67 53 Melee 15 | . . . . . . . . 15 Projectile 288 | . 11 3 . 139 1 29 67 38 AOE 4 | . . . . 2 . . . 2 Critical Strikes 25 | . . . . 8 . 2 4 11 Damage Taken 7038 | . 89 118 . 2862 20 661 1589 1699 Core 3189 | . 7 . . 671 . 93 805 1613 Absorbed by Shields 38 | . . . . . . . 38 . Core Remaining (%) 77 | 100 . . 97 32 100 92 44 . Volleys Fired 46 | . 6 . . 24 . . 15 1 Largest 2 | . 2 . . 2 . . 1 1 Hottest 103 | . 90 . . 103 . . 58 58 Shots Fired 61 | . 11 . . 35 . . 14 1 Gun 46 | . 11 . . 35 . . . . Cannon 12 | . . . . . . . 11 1 Launcher . | . . . . . . . . . Special 3 | . . . . . . . 3 . Kinetic 38 | . . . . 26 . . 11 1 Thermal 14 | . 5 . . 9 . . . . Explosive . | . . . . . . . . . Electromagnetic 6 | . 6 . . . . . . . Robot Hit Streak 5 | . 3 . . 5 . . 1 . Robot Miss Streak 3 | . 2 . . 3 . . 1 1 Penetration Max . | . . . . . . . . . Secondary Targets 1 | . . . . 1 . . . . Max Gunslinging Chain 1 | . . . . 1 . . . . Shots Hit Robots 64 | . 6 . . 57 . . 1 . Core Hits 22 | . 2 . . 19 . . . 1 Critical Kills 2 | . . . . 2 . . . . Critical Parts Destroyed 2 | . . . . 2 . . . . Critical Strikes 4 | . . . . 4 . . . . Smash 4 | . . . . 4 . . . . Melee Attacks 57 | . . . . 57 . . . . Impact 57 | . . . . 57 . . . . Slashing . | . . . . . . . . . Piercing . | . . . . . . . . . Sneak Attacks 2 | . . . . 2 . . . . Combat Hostiles . | . . . . . . . . . Follow-up Attacks . | . . . . . . . . . Damage Inflicted 2853 | . 116 . . 2685 . 21 17 14 Guns 593 | . 86 . . 507 . . . . Cannons . | . . . . . . . . . Explosions 606 | . 30 . . 576 . . . . Melee 1602 | . . . . 1602 . . . . Ramming 52 | . . . . . . 21 17 14 Kinetic 400 | . . . . 400 . . . . Thermal 149 | . 42 . . 107 . . . . Explosive 576 | . . . . 576 . . . . Electromagnetic 74 | . 74 . . . . . . . Impact 1602 | . . . . 1602 . . . . Slashing . | . . . . . . . . . Piercing . | . . . . . . . . . Highest Corruption 17 | . . . . 17 . 5 13 4 Average Corruption 8 | . . . . 12 . 4 6 3 Corruption Purged . | . . . . . . . . . Corruption Blocked . | . . . . . . . . . Effects 12 | . . . . 8 . . 4 . Message Errors 3 | . . . . 2 . . 1 . Matter Fused 3 | . . . . 2 . . 1 . Energy Discharges 2 | . . . . 2 . . . . Data Loss (minor) 2 | . . . . 1 . . 1 . Misdirections 1 | . . . . 1 . . . . Weapon Failures 1 | . . . . . . . 1 . Overload Shots . | . . . . . . . . . Overflow Damage 350 | . . . . 350 . . . . Projectiles . | . . . . . . . . . Explosions 58 | . . . . 58 . . . . Melee 292 | . . . . 292 . . . . Knockbacks 8 | . . . . 8 . . . . Impact 8 | . . . . 8 . . . . Kinetic . | . . . . . . . . . Secondary . | . . . . . . . . . Self-Inflicted Damage 119 | . . . . 96 . 9 8 6 Shots 1 | . . . . 1 . . . . Rammed 8 | . . . . . . 3 1 4 Targets Rammed 8 | . . . . . . 3 1 4 Kicked . | . . . . . . . . . Crushed . | . . . . . . . . . Highest Temperature 81 | . 60 . . 81 . . . . Average Temperature 27 | . 23 . . 29 . . . . Received Heat Transfer 759 | . . 6 . 462 . 177 24 90 Siege Activations . | . . . . . . . . . Martial Activations . | . . . . . . . . . Shielding Activations . | . . . . . . . . . Robots Disrupted . | . . . . . . . . . Combat Hostiles . | . . . . . . . . . Robots Corrupted 2 | . . . . 2 . . . . Combat Hostiles 1 | . . . . 1 . . . . Parts Fried . | . . . . . . . . . Impact Corruptions 16 | . . . . 16 . . . . Robots Melted . | . . . . . . . . . Combat Hostiles . | . . . . . . . . . Parts Melted . | . . . . . . . . . Heat Transferred 285 | . 87 . . 198 . . . . Parts Sabotaged . | . . . . . . . . . Parts Stolen . | . . . . . . . . . Parts Stripped . | . . . . . . . . . Power Chain Reactions 1 | . 1 . . . . . . . Alert | -11 -10 -10 -7 -5 -4 -3 -2 -1 ------- Run | Yrd Mat Sub Scr Fac Fac Res Res Acc Maximum Alert Level . | . . . . . . . . . Low Security (%) 100 | 100 100 . . 100 100 100 100 100 Level 1 . | . . . . . . . . . Level 2 . | . . . . . . . . . Level 3 . | . . . . . . . . . Level 4 . | . . . . . . . . . Level 5 . | . . . . . . . . . High Security . | . . . . . . . . . Max Security . | . . . . . . . . . Peak Influence 170 | . 30 . . 169 16 170 102 108 Initial 84 | . . . . . 16 . 84 33 Average 32 | . 5 . . 49 1 52 30 26 Influence Increases 1156 | . 64 . . 472 . 210 257 153 Destroy 0b10 Robot/C 200 | . . . . 200 . . . . Destroy 0b10 Robot/NC 20 | . 10 . . 10 . . . . Destroy Leader 34 | . 2 . . 32 . . . . Trap Triggered on 0b10 10 | . . . . 10 . . . . Successful Hack 29 | . 6 . . 15 . . 8 . Disable Machine 30 | . 15 . . 15 . . . . Destroy Structure 83 | . 1 . . 70 . . 9 3 Partial Spotted 90 | . . . . 30 . . 45 15 Lose Combat Pursuer 660 | . 30 . . 90 . 210 195 135 Influence Decreases 1048 | . 61 3 . 439 33 60 350 102 Entered New Map 110 | . . 3 . . 17 . 66 24 Time Decay 618 | . 61 . . 239 16 40 194 68 Lost Part 320 | . . . . 200 . 20 90 10 Squads Dispatched 11 | . . . . 3 . 1 4 3 Investigation 4 | . . . . . . 1 1 2 Extermination 4 | . . . . 2 . . 2 . Reinforcement 3 | . . . . 1 . . 1 1 Assault . | . . . . . . . . . Garrison . | . . . . . . . . . Intercept . | . . . . . . . . . Searches Triggered . | . . . . . . . . . Construction Impeded . | . . . . . . . . . Haulers Reinforced . | . . . . . . . . . Active Scanning Responses . | . . . . . . . . . Cargo Convoy Interrupts . | . . . . . . . . . Stealth | -11 -10 -10 -7 -5 -4 -3 -2 -1 --------- Run | Yrd Mat Sub Scr Fac Fac Res Res Acc Distress Signals 4 | . 1 . . . . . 2 1 Communications Jammed . | . . . . . . . . . Distress Signals . | . . . . . . . . . Times Spotted 89 | . 7 5 . 21 1 18 16 21 Peak Tracking Total 13 | . 3 4 . 7 1 11 8 13 Tactical Retreats 17 | . 1 . . 6 . 3 4 3 Traps | -11 -10 -10 -7 -5 -4 -3 -2 -1 ------- Run | Yrd Mat Sub Scr Fac Fac Res Res Acc Traps Triggered 8 | . . 1 . . 1 2 4 . Indirectly . | . . . . . . . . . Trap Hack Attempts . | . . . . . . . . . Triggered . | . . . . . . . . . Disarmed . | . . . . . . . . . Reprogrammed 6 | . . . . 6 . . . . Reused 1 | . . . . 1 . . . . Traps Extracted . | . . . . . . . . . Installed . | . . . . . . . . . Triggered 1 | . . . . 1 . . . . Machines | -11 -10 -10 -7 -5 -4 -3 -2 -1 ---------- Run | Yrd Mat Sub Scr Fac Fac Res Res Acc Machines Disabled 2 | . 1 . . 1 . . . . Max in Single Turn 1 | . 1 . . 1 . . . . Machines Repaired . | . . . . . . . . . Machines Dismantled . | . . . . . . . . . Machines Sabotaged . | . . . . . . . . . Overloaded Fab Kills . | . . . . . . . . . Hacking | -11 -10 -10 -7 -5 -4 -3 -2 -1 --------- Run | Yrd Mat Sub Scr Fac Fac Res Res Acc Machines Accessed 14 | . 4 . 2 2 . . 4 2 Terminals 12 | . 4 . . 2 . . 4 2 Fabricators . | . . . . . . . . . Repair Stations . | . . . . . . . . . Recycling Units . | . . . . . . . . . Scanalyzers . | . . . . . . . . . Garrison Access . | . . . . . . . . . Total Hacks 52 | . 9 . 17 12 . . 10 4 Successful 26 | . 1 . 17 7 . . 1 . Failed 26 | . 8 . . 5 . . 9 4 Catastrophic 11 | . 1 . . 1 . . 5 4 Database Lockouts . | . . . . . . . . . Manual 33 | . 9 . . 12 . . 10 2 Terminals 35 | . 9 . . 12 . . 10 4 Fabricators . | . . . . . . . . . Repair Stations . | . . . . . . . . . Recycling Units . | . . . . . . . . . Scanalyzers . | . . . . . . . . . Garrison Access . | . . . . . . . . . Terminal Hacks 22 | . . . 17 4 . . 1 . Record 17 | . . . 17 . . . . . Level Access Points 2 | . . . . 1 . . 1 . Branch Access Points 1 | . . . . 1 . . . . Terminal Index 1 | . . . . 1 . . . . Reprogram Traps 1 | . . . . 1 . . . . Fabricator Hacks . | . . . . . . . . . Repair Station Hacks . | . . . . . . . . . Recycling Unit Hacks . | . . . . . . . . . Scanalyzer . | . . . . . . . . . Garrison Access Hacks . | . . . . . . . . . Unauthorized Hacks 4 | . 1 . . 3 . . . . Terminals 4 | . 1 . . 3 . . . . Botnet 2 | . . . . 2 . . . . Operators 2 | . 1 . . 1 . . . . Fabricators . | . . . . . . . . . Repair Stations . | . . . . . . . . . Recycling Units . | . . . . . . . . . Scanalyzers . | . . . . . . . . . Garrison Access . | . . . . . . . . . Data Cores Recovered 1 | . 1 . . . . . . . Used 1 | . 1 . . . . . . . Hacking Detections 11 | . 4 . . 1 . . 4 2 Full Trace Events 5 | . 2 . . . . . 1 2 Feedback Events . | . . . . . . . . . Feedback Blocked . | . . . . . . . . . Robot Schematics Acquired . | . . . . . . . . . Robots Built . | . . . . . . . . . Authchips . | . . . . . . . . . Time . | . . . . . . . . . Total Robot Build Rating . | . . . . . . . . . Part Schematics Acquired . | . . . . . . . . . Parts Built . | . . . . . . . . . Authchips . | . . . . . . . . . Time . | . . . . . . . . . Total Part Build Rating . | . . . . . . . . . Part Studies Acquired . | . . . . . . . . . Parts Repaired . | . . . . . . . . . Time . | . . . . . . . . . Parts Recycled . | . . . . . . . . . Recycled Matter . | . . . . . . . . . Retrieved Matter . | . . . . . . . . . Retrieved Components . | . . . . . . . . . Parts Scanalyzed . | . . . . . . . . . Part Schematics Acquired . | . . . . . . . . . Parts Damaged . | . . . . . . . . . Bothacking | -11 -10 -10 -7 -5 -4 -3 -2 -1 ------------ Run | Yrd Mat Sub Scr Fac Fac Res Res Acc Used RIF Installer . | . . . . . . . . . Robots Hacked 1 | . . . . . . . 1 . Non-combat 1 | . . . . . . . 1 . Combat . | . . . . . . . . . Robot Hacks Applied 1 | . . . . . . . 1 . check_alert 1 | . . . . . . . 1 . Relay Couplers Released . | . . . . . . . . . Fabnet Peak Effective % . | . . . . . . . . . Robots Rewired . | . . . . . . . . . Allies Hacked . | . . . . . . . . . Hacks Repelled . | . . . . . . . . . Allies | -11 -10 -10 -7 -5 -4 -3 -2 -1 -------- Run | Yrd Mat Sub Scr Fac Fac Res Res Acc Total Allies . | . . . . . . . . . Largest Group . | . . . . . . . . . Highest-Rated Group . | . . . . . . . . . Highest-Rated Ally . | . . . . . . . . . Total Orders . | . . . . . . . . . Ally Attacks . | . . . . . . . . . Total Damage . | . . . . . . . . . Kills . | . . . . . . . . . Allies Corrupted . | . . . . . . . . . Allies Melted . | . . . . . . . . . Intel | -11 -10 -10 -7 -5 -4 -3 -2 -1 ------- Run | Yrd Mat Sub Scr Fac Fac Res Res Acc Active Infowar (turns) 481 | . . . . . 18 7 456 . Sensors 452 | . . . . . 18 7 427 . Cloaking 457 | . . . . . 1 . 456 . Robot Analysis Total . | . . . . . . . . . Derelict Logs Recovered . | . . . . . . . . . Drone Launches . | . . . . . . . . . Drone Recoveries . | . . . . . . . . . Exploration | -11 -10 -10 -7 -5 -4 -3 -2 -1 ------------- Run | Yrd Mat Sub Scr Fac Fac Res Res Acc Turns Passed 4072 | 69 311 300 1093 1084 261 142 655 157 Spaces Moved 4259 | 46 241 249 896 723 425 267 1088 324 Core 1281 | 3 . . . 273 425 267 120 193 Treads 245 | . . . . 245 . . . . Legs 1634 | 43 241 249 896 205 . . . . Wheels . | . . . . . . . . . Hover . | . . . . . . . . . Flight 1099 | . . . . . . . 968 131 Fastest Speed 29 | 50 120 120 120 50 50 50 29 35 Average Speed 81 | 123 120 120 120 108 53 50 41 43 Slowest Speed 250 | 190 120 120 190 240 250 50 250 50 Overloaded Moves 86 | . . . . . . . 86 . Propulsion Burnouts . | . . . . . . . . . Robots Hopped . | . . . . . . . . . Potential Cave-ins 6 | . . . . . . . 6 . Cave-ins Triggered . | . . . . . . . . . Exploration Rate (%) 23 | 4 43 23 59 23 7 17 19 12 Regions Visited 8 Branch Regions 2 Pre-discovered Areas . | . . . . . . . . . Known Exits Taken 2 | . . . . 1 . . 1 . Unknown Exits Taken 6 | 1 1 1 1 . 1 1 . . Scrap Searched 2 | . . . 2 . . . . . Spaces Dug 15 | . . . . 5 . . 10 . Terrain Destroyed 63 | . 1 . . 50 . . 11 1 Melee 5 | . . . . 5 . . . . Projectile 12 | . . . . . . . 11 1 AOE 46 | . 1 . . 45 . . . . Terrain Rammed . | . . . . . . . . . Walls Destroyed . | . . . . . . . . . Machines Disabled . | . . . . . . . . . Actions | -11 -10 -10 -7 -5 -4 -3 -2 -1 --------- Run | Yrd Mat Sub Scr Fac Fac Res Res Acc Total 4744 | 55 252 248 918 922 459 275 1277 338 Wait 235 | . 1 . . 89 1 6 138 . Move 4253 | 45 240 248 895 722 424 267 1088 324 Hop . | . . . . . . . . . Pick Up 24 | 4 4 . 9 2 3 . 1 1 Fast Attach 37 | 6 . . . 17 7 . 4 3 Attach 16 | . 1 . 2 7 1 . 4 1 Detach 4 | . . . 1 1 1 . 1 . Swap 5 | . . . 2 3 . . . . Drop 25 | . . . 9 . 7 . 5 4 Fire 46 | . 6 . . 24 . . 15 1 Melee 57 | . . . . 57 . . . . Ram 6 | . . . . . . 2 . 4 Kick . | . . . . . . . . . Crush . | . . . . . . . . . Escape Stasis 36 | . . . . . 15 . 21 . Rewire . | . . . . . . . . . Trap . | . . . . . . . . . Miscellaneous . | . . . . . . . . . Route ------- -11/Scrapyard -10/Materials (discovered 2 exits: [*Min] / [*Sub]) -10/Subcaves (discovered 2 exits: [*Mat] / *Scr) -7/Scraptown -5/Factory (discovered 6 exits: *Fac x4 / Upp x2) -4/Factory (discovered 2 exits: [*Res] / [*Upp]) -3/Research -2/Research (discovered 3 exits: *Acc x3) -1/Access History --------- Turn | Location | Event 3 | -11/Scrapyard | Discovered new exit (range 16) 70 | -11/Scrapyard | Entered Materials 104 | -10/Materials | Discovered new exit (range 8) 313 | -10/Materials | Discovered new exit (range 13) 315 | -10/Materials | Build established: Mutant 381 | -10/Materials | Entered Subcaves 382 | -10/Subcaves | Approached by a straggling Scientist 459 | -10/Subcaves | Discovered new exit (range 15) 477 | -10/Subcaves | Ambushed by swarm of Subdwellers 600 | -10/Subcaves | Ambushed by Subdwellers from Twisted Machinery 663 | -10/Subcaves | Scientist uncovered a shortcut to Scraptown 681 | -10/Subcaves | Entered Scraptown 717 | -7/Scraptown | Heard Great Nut preacher, LISTEN AND RECITE! 1116 | -7/Scraptown | Discovered new exit (range 3) 1193 | -7/Scraptown | Visited The Evicted 1236 | -7/Scraptown | Visited SPCMW 1299 | -7/Scraptown | Visited Symbiants 1538 | -7/Scraptown | Visited Shadow of the Wyrm 1558 | -7/Scraptown | Visited Comm Corps 1615 | -7/Scraptown | Visited Cave Peace 1774 | -7/Scraptown | Entered Factory 1774 | -5/Factory | Evolved 10 slots: Power x1, Propulsion x4, Utility x5 2041 | -5/Factory | Identified exit to Factory 2041 | -5/Factory | Identified exit to Upper Caves 2069 | -5/Factory | Build established: Hacker-Mutant 2281 | -5/Factory | Lost 4 parts (1p1n1u1w) 2619 | -5/Factory | Lost 3 parts (1p2n) 2656 | -5/Factory | System corruption reached 10% 2665 | -5/Factory | Core integrity fell below 50% 2707 | -5/Factory | Lost 11 parts (1p5n4u1w) 2858 | -5/Factory | Entered another Factory area 2858 | -4/Factory | Evolved 2 slots: Power x1, Utility x1 2998 | -4/Factory | Discovered new exit (range 10) 2998 | -4/Factory | Discovered new exit (range 15) 3119 | -4/Factory | Entered Research 3119 | -3/Research | Evolved 2 slots: Utility x2 3255 | -3/Research | Discovered new exit (range 11) 3261 | -3/Research | Entered another Research area 3261 | -2/Research | Evolved 2 slots: Power x1, Weapon x1 3849 | -2/Research | Identified exit to Access 3899 | -2/Research | System corruption reached 10% 3910 | -2/Research | Core integrity fell below 50% 3916 | -2/Research | Entered Access 3916 | -1/Access | Evolved 2 slots: Utility x1, Weapon x1 3940 | -1/Access | Lost 4 parts (1n1u2w) 3964 | -1/Access | Found Prototype Processor 3964 | -1/Access | Identified Exp. Signal Interpreter 4027 | -1/Access | Found Prototype Device 4027 | -1/Access | Identified Exp. Focal Shield 4060 | -1/Access | Core integrity fell below 50% 4068 | -1/Access | Core integrity fell below 20% 4073 | -1/Access | Destroyed by C-57 Dissector with Dual-blade Saw Last Messages --------------- 03993_ Slug penetrates K-01 Serf. 03993_ K-01 Serf destroyed. 03993_ K-01 Serf collects debris. 04017_ Connecting with Terminal... 04017_ ALERT: Suspicious activity at Terminal A001. Dispatching Investigation squad. 04018_ ALERT: Suspicious intruders detected, dispatching Cutter reinforcements to area. 04027_ Acquired Prototype Device. 04027_ Identified Exp. Focal Shield. 04027_ Faulty integration triggers energy drain (-52). 04028_ Dropped Faulty Exp. Focal Shield. 04038_ System Shield destroyed. 04044_ Imp. Gyrokinetic Inverter severed. 04048_ Slammed into C-57 Dissector. 04056_ Acquired Enh. Hardcell Cannon. 04058_ Enh. Hardcell Cannon severed. 04060_ Slammed into C-57 Dissector. 04065_ Knocked back. 04069_ C-57 Dissector knocked back. Map ----- +----------------------------------------------------+ | ?????????????????# #???????????# #?# | | ?????????????????# #???????????# #?# | | ?????????????????# #?????????### ### | | ?????????????????# #?????????# # | | ?????????????????# #?????????# # | | ??????????"####### #?????????+ # | | ??????????" #?????????# + | | ??????????" #?????????# # | | ??????????" #?????????# # | | ??????????" #?????????## H ## | | ??????????" #?????????# #] | | ??????????" #?????????# ## | | ??????????" #?????????# ############# | | ??????????" #?????????# #????????????? | | ??????????"""" """ #?????????# ###??????????? | | ??????????""""T""" #?????????# #??????????? | | ??????????"####### #?????????# #??????????? | | ?????????????????# #??????????# #???????????? | | ?????????????????# #?########## #???????????? | | ?????????????????# #?# # #????????????? | | ?????????????????# #?# # #????????????? | | ?????????????????# #?# #c #????????????? | | ?????????????????# #?# c #????????????? | | ?????????????????# #?# # #????????????? | | ???#############?# #?# " # #????????????? | | ??? [ ?# #?# @""" # #????????????? | | ?? # #?# c""" # #????????????? | | ?? != = # #?# " # #????????????? | | ?? != + #?##+####### #????????????? | | ?? ! # #??????????# #????????????? | | ?? # #??????????# #????????????? | | ??? ?# #??????????? +????????????? | | ??? ?# #??????????? #????????????? | | ???? ! ??# #??????????? #????????????? | | ???? ??# #??????????? #????????????? | | ????#+########???# #??????????? #????????????? | | ##### ############ #??????????? #????????????? | | #??????????? ??????????????? | | #????????????????????????????? | | ########### ########????????????????????????????? | | # #???????????????????????????????????? | | ]] # #???????????????????????????????????? | | ]] / #???????????????????????????????????? | | # #???????????????????????????????????? | | # #???????????????????????????????????? | | ?# ##############??????????????????????? | | ?# # #??????????????????????? | | ??# # #??????????????????????? | | ??# # """ *#??????????????????????? | | """ ???# # ""T"" #??????????????????????? | +----------------------------------------------------+ Best States ------------- Heat Dissipation 52 Energy Generation 32 Energy Capacity 440 Matter Stores 300 Matter Capacity 300 Sight Range 16 Robot Scan Range 18 Terrain Scan Density 10 Cloak Strength 2 Power Amplification 20 Corruption Containment 8 Armor Coverage 225 Evasion (%) 63 Recoil Reduction 2 Offensive Hacking 44 Defensive Hacking 10 Item Schematics ----------------- None Robot Schematics ------------------ None Fabricated ------------ Nothing Repaired ---------- Nothing Studied --------- None Alien Tech Used ----------------- None Achievements -------------- Civilization 2243 Denied? Nice Directions, Buddy Physics Hates This One Trick Challenges ------------ None Game ------ Seed PropulsionHugePit Manual? 0 Play Time 01:01:39 Cumulative 35.7 hours Start 2026.01.30 @ 17:13:42 End 2026.01.31 @ 00:08:10 Sessions 3 Manual Loads 0 Difficulty Rogue Special Mode None Game No. 29 Rogue 29 Adventurer 0 Explorer 0 Win Type - Total 0 Types 0/0/0/0/0/0/0/0/0/0 Lore% 13 Gallery% 27 Achievement% 20 Wizard Run 0 Options --------- Layout 0 ASCII 0 Keyboard 0 Movement Mouse Keybinds 1 Fullscreen 2 Font 24/Smallcaps Map View 76x50 Zoom Use 0% Tactical HUD 1 Map Filters NONE Filters NONE Steam 1 RUN: 47ba5e4e-c0ea-4c69-a877-596bb1eff950